fUSD/lending_fUSD_20250811
["ID","MTS","AMOUNT","RATE_DAILY","PERIOD"]
[378678315,1754956245384,-686.81,0.0001672,2]
[378678317,1754956245393,-790.88,0.0001672,2]
[378678319,1754956245403,-400.0,0.0001672,2]
[378678321,1754956245412,-400.0,0.0001672,2]
[378678322,1754956245422,-400.0,0.0001672,2]
[378678324,1754956245432,-400.0,0.0001672,2]
[378678326,1754956245442,-420.5745402,0.0001672,2]
[378678328,1754956245451,-400.0,0.0001672,2]
[378678331,1754956245461,-400.0,0.0001672,2]
[378678333,1754956245470,-400.0,0.0001672,2]
[378678334,1754956245479,-400.0,0.0001672,2]
[378678336,1754956245489,-400.0,0.0001672,2]
[378678339,1754956245498,-621.16,0.0001672,2]
[378678341,1754956245508,-656.82,0.0001672,2]
[378678343,1754956245517,-400.0,0.0001672,2]
[378678345,1754956245526,-400.0,0.0001672,2]
[378678347,1754956245537,-400.0,0.0001672,2]
[378678349,1754956245546,-400.0,0.0001672,2]
[378678351,1754956245556,-400.0,0.0001672,2]
[378678352,1754956245565,-400.0,0.0001672,2]
[378678354,1754956245574,-307.61489094,0.0001672,2]
[378678357,1754956245584,-400.0,0.0001672,2]
[378678358,1754956245593,-1118.47,0.0001672,2]
[378678360,1754956245602,-400.0,0.0001672,2]
[378678362,1754956245611,-400.0,0.0001672,2]
[378678364,1754956245620,-400.0,0.0001672,2]
[378678366,1754956245629,-400.0,0.0001672,2]
[378678368,1754956245639,-617.03,0.0001672,2]
[378678376,1754956245707,-400.0,0.0001672,2]
[378678378,1754956245716,-781.49,0.0001672,2]
[378678380,1754956245726,-400.0,0.0001672,2]
[378678382,1754956245736,-400.0,0.0001672,2]
[378678384,1754956245745,-1237.61,0.0001672,2]
[378678386,1754956245754,-400.0,0.0001672,2]
[378678388,1754956245764,-417.51,0.0001672,2]
[378678390,1754956245773,-400.0,0.0001672,2]
[378678392,1754956245782,-784.88,0.0001672,2]
[378678394,1754956245792,-400.0,0.0001672,2]
[378678396,1754956245802,-400.0,0.0001672,2]
[378678398,1754956245812,-539.17,0.0001672,2]
[378678400,1754956245821,-549.33,0.0001672,2]
[378678402,1754956245830,-526.4259601,0.0001672,2]
[378678404,1754956245840,-400.0,0.0001672,2]
[378678406,1754956245850,-400.0,0.0001672,2]
[378678408,1754956245859,-509.79,0.0001672,2]
[378678410,1754956245869,-1526.88,0.0001672,2]
[378678412,1754956245878,-400.0,0.0001672,2]
[378678415,1754956245888,-519.69311594,0.0001672,2]
[378678417,1754956245897,-400.0,0.0001672,2]
[378678418,1754956245906,-674.23,0.0001672,2]
[378678420,1754956245915,-566.22,0.0001672,2]
[378678422,1754956245924,-723.38,0.0001672,2]
[378678424,1754956245933,-400.0,0.0001672,2]
[378678426,1754956245944,-400.0,0.0001672,2]
[378678428,1754956245953,-400.0,0.0001672,2]
[378678430,1754956245962,-683.35,0.0001672,2]
[378678432,1754956245971,-1058.26,0.0001672,2]
[378678434,1754956245980,-400.0,0.0001672,2]
[378678436,1754956245989,-400.0,0.0001672,2]
[378678438,1754956245999,-2420.62,0.0001672,2]
[378678440,1754956246008,-400.0,0.0001672,2]
[378678442,1754956246018,-2065.54,0.0001672,2]
[378678445,1754956246027,-400.0,0.0001672,2]
[378678448,1754956246037,-696.65,0.0001672,2]
[378678451,1754956246045,-456.95,0.0001672,2]
[378678454,1754956246056,-512.895501,0.00016721,2]
[378678456,1754956246065,-512.895501,0.00016721,2]
[378678458,1754956246074,-400.0,0.00016721,2]
[378678460,1754956246083,-476.04,0.00016721,2]
[378678462,1754956246092,-400.0,0.00016721,2]
[378678464,1754956246101,-400.0,0.00016721,2]
[378678466,1754956246111,-489.91,0.00016721,2]
[378678468,1754956246120,-400.0,0.00016721,2]
[378678469,1754956246130,-400.0,0.00016721,2]
[378678470,1754956246140,-400.0,0.00016721,2]
[378678471,1754956246149,-400.0,0.00016721,2]
[378678472,1754956246159,-961.95,0.00016721,2]
[378678473,1754956246170,-400.0,0.00016721,2]
[378678474,1754956246180,-514.55,0.00016721,2]
[378678475,1754956246190,-697.08,0.00016721,2]
[378678476,1754956246200,-400.0,0.00016721,2]
[378678477,1754956246210,-400.0,0.00016721,2]
[378678478,1754956246220,-400.0,0.00016721,2]
[378678479,1754956246229,-407.83,0.00016721,2]
[378678480,1754956246239,-162.17,0.00016721,2]
[378678481,1754956246248,-1056.9,0.00016721,2]
[378678482,1754956246258,-770.28,0.00016721,2]
[378678483,1754956246268,-400.0,0.00016721,2]
[378678484,1754956246277,-400.0,0.00016721,2]
[378678485,1754956246287,-1130.85,0.00016721,2]
[378678486,1754956246296,-400.0,0.00016721,2]
[378678487,1754956246305,-773.64,0.00016721,2]
[378678488,1754956246315,-1297.93,0.00016721,2]
[378678489,1754956246324,-554.66,0.00016721,2]
[378678490,1754956246333,-468.35,0.00016721,2]
[378678491,1754956246343,-477.89,0.00016721,2]
[378678492,1754956246352,-400.0,0.00016721,2]
[378678493,1754956246361,-529.52,0.00016721,2]
[378678494,1754956246372,-1148.78,0.00016721,2]
[378678495,1754956246381,-1207.12,0.00016721,2]
[378678496,1754956246390,-400.0,0.00016721,2]
[378678497,1754956246400,-512.01,0.00016721,2]
[378678498,1754956246409,-977.39,0.00016721,2]
[378678499,1754956246418,-400.0,0.00016721,2]
[378678500,1754956246428,-431.17,0.00016721,2]
[378678501,1754956246437,-400.0,0.00016721,2]
[378678502,1754956246447,-603.37,0.00016721,2]
[378678503,1754956246456,-4067.15,0.00016721,2]
[378678504,1754956246465,-773.66,0.00016721,2]
[378678505,1754956246474,-400.0,0.00016721,2]
[378678506,1754956246485,-474.34,0.00016721,2]
[378678507,1754956246494,-473.31,0.00016721,2]
[378678508,1754956246504,-462.81945389,0.00016723,2]
[378678509,1754956246513,-300.0,0.00016729,2]
[378678510,1754956246523,-168.0,0.00016729,2]
[378678511,1754956246538,-400.0,0.0001673,2]
[378678512,1754956246548,-400.0,0.0001673,2]
[378678513,1754956246557,-400.0,0.0001673,2]
[378678514,1754956246566,-400.0,0.0001673,2]
[378678515,1754956246575,-400.0,0.0001673,2]
[378678516,1754956246585,-400.0,0.0001673,2]
[378678518,1754956246597,-400.0,0.0001673,2]
[378678520,1754956246612,-400.0,0.0001673,2]
[378678522,1754956246624,-400.0,0.0001673,2]
[378678524,1754956246634,-497.61094758,0.0001673,2]
[378678525,1754956246644,-400.0,0.0001673,2]
[378678526,1754956246654,-400.0,0.0001673,2]
[378678528,1754956246663,-400.0,0.0001673,2]
[378678530,1754956246674,-400.0,0.0001673,2]
[378678532,1754956246687,-400.0,0.0001673,2]
[378678534,1754956246696,-400.0,0.0001673,2]
[378678537,1754956246706,-437.65,0.0001673,2]
[378678538,1754956246715,-400.0,0.0001673,2]
[378678540,1754956246726,-400.0,0.0001673,2]
[378678542,1754956246735,-400.0,0.0001673,2]
[378678543,1754956246744,-519.06,0.0001673,2]
[378678545,1754956246753,-400.0,0.0001673,2]
[378678548,1754956246763,-400.0,0.0001673,2]
[378678549,1754956246772,-400.0,0.0001673,2]
[378678550,1754956246781,-400.0,0.0001673,2]
[378678551,1754956246790,-400.0,0.0001673,2]
[378678552,1754956246799,-400.0,0.0001673,2]
[378678553,1754956246808,-400.0,0.0001673,2]
[378678554,1754956246818,-400.0,0.0001673,2]
[378678555,1754956246827,-400.0,0.0001673,2]
[378678556,1754956246836,-400.0,0.0001673,2]
[378678557,1754956246846,-400.0,0.0001673,2]
[378678558,1754956246855,-400.0,0.0001673,2]
[378678559,1754956246865,-400.0,0.0001673,2]
[378678560,1754956246876,-400.0,0.0001673,2]
[378678561,1754956246885,-400.0,0.0001673,2]
[378678562,1754956246894,-400.0,0.0001673,2]
[378678563,1754956246903,-400.0,0.0001673,2]
[378678564,1754956246912,-400.0,0.0001673,2]
[378678565,1754956246922,-490.51,0.0001673,2]
[378678566,1754956246931,-400.0,0.0001673,2]
[378678567,1754956246941,-499.01,0.0001673,2]
[378678568,1754956246950,-400.0,0.0001673,2]
[378678569,1754956246960,-400.0,0.0001673,2]
[378678570,1754956246970,-400.0,0.0001673,2]
[378678571,1754956246980,-416.21,0.0001673,2]
[378678572,1754956246990,-400.0,0.0001673,2]
[378678573,1754956246999,-400.0,0.0001673,2]
[378678574,1754956247009,-492.38,0.0001673,2]
[378678575,1754956247018,-400.0,0.0001673,2]
[378678576,1754956247027,-517.44,0.0001673,2]
[378678577,1754956247037,-400.0,0.0001673,2]
[378678578,1754956247047,-458.23,0.0001673,2]
[378678579,1754956247056,-400.0,0.0001673,2]
[378678580,1754956247066,-424.29,0.0001673,2]
[378678581,1754956247075,-400.0,0.0001673,2]
[378678582,1754956247084,-519.78,0.0001673,2]
[378678583,1754956247094,-400.0,0.0001673,2]
[378678584,1754956247103,-400.25,0.0001673,2]
[378678585,1754956247113,-495.99,0.0001673,2]
[378678586,1754956247124,-400.0,0.0001673,2]
[378678587,1754956247143,-400.0,0.0001673,2]
[378678588,1754956247152,-400.0,0.0001673,2]
[378678589,1754956247162,-400.0,0.0001673,2]
[378678590,1754956247171,-400.0,0.0001673,2]
[378678591,1754956247181,-400.0,0.0001673,2]
[378678592,1754956247190,-400.0,0.0001673,2]
[378678593,1754956247199,-400.0,0.0001673,2]
[378678594,1754956247208,-400.0,0.0001673,2]
[378678595,1754956247218,-400.0,0.0001673,2]
[378678596,1754956247227,-400.0,0.0001673,2]
[378678597,1754956247236,-400.0,0.0001673,2]
[378678598,1754956247246,-400.0,0.0001673,2]
[378678599,1754956247255,-282.37628033,0.0001673,2]
[378678600,1754956247272,-400.0,0.0001673,2]
[378678601,1754956247282,-400.0,0.0001673,2]
[378678602,1754956247291,-400.0,0.0001673,2]
[378678603,1754956247301,-400.0,0.0001673,2]
[378678604,1754956247310,-400.0,0.0001673,2]
[378678605,1754956247319,-400.0,0.0001673,2]
[378678606,1754956247329,-400.0,0.0001673,2]
[378678607,1754956247338,-400.0,0.0001673,2]
[378678608,1754956247347,-400.0,0.0001673,2]
[378678609,1754956247356,-400.0,0.0001673,2]
[378678610,1754956247365,-662.22,0.0001673,2]
[378678611,1754956247375,-459.41,0.0001673,2]
[378678612,1754956247383,-400.0,0.0001673,2]
[378678613,1754956247392,-400.0,0.0001673,2]
[378678614,1754956247402,-400.0,0.0001673,2]
[378678615,1754956247411,-178.56,0.0001673,2]
[378678616,1754956247419,-400.0,0.0001673,2]
[378678617,1754956247428,-400.0,0.0001673,2]
[378678618,1754956247438,-400.0,0.0001673,2]
[378678619,1754956247448,-400.0,0.0001673,2]
[378678620,1754956247457,-400.0,0.0001673,2]
[378678621,1754956247467,-400.0,0.0001673,2]
[378678622,1754956247476,-400.0,0.0001673,2]
[378678623,1754956247486,-400.0,0.0001673,2]
[378678624,1754956247495,-400.0,0.0001673,2]
[378678625,1754956247504,-400.0,0.0001673,2]
[378678626,1754956247513,-400.0,0.0001673,2]
[378678627,1754956247523,-470.66,0.0001673,2]
[378678628,1754956247532,-630.29,0.0001673,2]
[378678629,1754956247544,-401.86,0.0001673,2]
[378678630,1754956247553,-400.0,0.0001673,2]
[378678631,1754956247564,-400.0,0.0001673,2]
[378678632,1754956247574,-400.0,0.0001673,2]
[378678633,1754956247584,-437.19,0.0001673,2]
[378678634,1754956247593,-412.67,0.0001673,2]
[378678635,1754956247602,-400.0,0.0001673,2]
[378678636,1754956247612,-400.0,0.0001673,2]
[378678637,1754956247622,-400.0,0.0001673,2]
[378678638,1754956247631,-706.12,0.0001673,2]
[378678639,1754956247640,-400.0,0.0001673,2]
[378678640,1754956247649,-452.36,0.0001673,2]
[378678641,1754956247658,-400.0,0.0001673,2]
[378678642,1754956247667,-400.0,0.0001673,2]
[378678643,1754956247677,-400.0,0.0001673,2]
[378678644,1754956247690,-400.0,0.0001673,2]
[378678645,1754956247699,-415.88,0.0001673,2]
[378678646,1754956247708,-748.93,0.0001673,2]
[378678647,1754956247718,-448.29,0.0001673,2]
[378678648,1754956247727,-400.0,0.0001673,2]
[378678649,1754956247737,-434.91,0.0001673,2]
[378678650,1754956247746,-400.0,0.0001673,2]
[378678651,1754956247755,-512.52,0.0001673,2]
[378678652,1754956247767,-364.06672641,0.0001673,2]
[378678653,1754956247776,-488.54,0.0001673,2]
[378678654,1754956247787,-400.0,0.0001673,2]
[378678655,1754956247796,-400.0,0.0001673,2]
[378678656,1754956247805,-400.0,0.0001673,2]
[378678657,1754956247814,-400.0,0.0001673,2]
[378678658,1754956247824,-400.0,0.0001673,2]
[378678659,1754956247832,-531.95,0.0001673,2]
[378678660,1754956247842,-575.03,0.0001673,2]
[378678661,1754956247851,-400.0,0.0001673,2]
[378678662,1754956247860,-485.19,0.0001673,2]
[378678663,1754956247869,-538.53,0.0001673,2]
[378678664,1754956247878,-400.0,0.0001673,2]
[378678665,1754956247888,-728.67,0.0001673,2]
[378678666,1754956247897,-400.0,0.0001673,2]
[378678667,1754956247907,-530.0,0.0001673,2]
[378678668,1754956247917,-400.0,0.0001673,2]
[378678669,1754956247927,-441.25,0.0001673,2]
[378678670,1754956247937,-585.0,0.0001673,2]
[378678671,1754956247946,-400.0,0.0001673,2]
[378678672,1754956247955,-400.0,0.0001673,2]
[378678673,1754956247964,-564.63,0.0001673,2]
[378678674,1754956247973,-1142.47,0.0001673,2]
[378678675,1754956247983,-400.0,0.0001673,2]
[378678676,1754956247992,-955.21,0.0001673,2]
[378678677,1754956248001,-420.37,0.0001673,2]
[378678678,1754956248010,-596.74,0.0001673,2]
[378678679,1754956248020,-400.0,0.0001673,2]
[378678680,1754956248029,-730.89,0.0001673,2]
[378678681,1754956248040,-400.0,0.0001673,2]
[378678682,1754956248049,-400.0,0.0001673,2]
[378678683,1754956248058,-400.0,0.0001673,2]
[378678684,1754956248068,-507.68,0.0001673,2]
[378678685,1754956248077,-400.0,0.0001673,2]
[378678686,1754956248086,-1320.38,0.0001673,2]
[378678687,1754956248095,-400.0,0.0001673,2]
[378678688,1754956248105,-400.0,0.0001673,2]
[378678689,1754956248114,-400.0,0.0001673,2]
[378678690,1754956248124,-1116.62,0.0001673,2]
[378678691,1754956248133,-738.94,0.0001673,2]
[378678692,1754956248142,-400.0,0.0001673,2]
[378678693,1754956248152,-400.0,0.0001673,2]
[378678694,1754956248161,-400.0,0.0001673,2]
[378678695,1754956248170,-937.64,0.0001673,2]
[378678696,1754956248179,-844.9,0.0001673,2]
[378678697,1754956248189,-1564.26,0.0001673,2]
[378678698,1754956248199,-441.32,0.0001673,2]
[378678699,1754956248208,-491.5,0.0001673,2]
[378678700,1754956248217,-618.68,0.0001673,2]
[378678701,1754956248227,-400.0,0.0001673,2]
[378678702,1754956248236,-400.0,0.0001673,2]
[378678703,1754956248245,-954.6,0.0001673,2]
[378678704,1754956248254,-864.95,0.0001673,2]
[378678705,1754956248263,-400.0,0.0001673,2]
[378678706,1754956248272,-828.48,0.0001673,2]
[378678707,1754956248282,-400.0,0.0001673,2]
[378678708,1754956248292,-729.2,0.0001673,2]
[378678709,1754956248303,-482.38,0.0001673,2]
[378678710,1754956248312,-400.0,0.0001673,2]
[378678711,1754956248321,-1378.77,0.0001673,2]
[378678712,1754956248331,-400.0,0.0001673,2]
[378678713,1754956248340,-617.63,0.0001673,2]
[378678714,1754956248350,-400.0,0.0001673,2]
[378678715,1754956248359,-400.0,0.0001673,2]
[378678716,1754956248369,-400.0,0.0001673,2]
[378678717,1754956248378,-400.0,0.0001673,2]
[378678718,1754956248387,-581.58,0.0001673,2]
[378678719,1754956248396,-400.0,0.0001673,2]
[378678720,1754956248405,-1006.58,0.0001673,2]
[378678721,1754956248415,-400.0,0.0001673,2]
[378678722,1754956248424,-400.0,0.0001673,2]
[378678723,1754956248433,-1521.51,0.0001673,2]
[378678724,1754956248442,-400.0,0.0001673,2]
[378678725,1754956248451,-400.0,0.0001673,2]
[378678726,1754956248460,-400.0,0.0001673,2]
[378678727,1754956248470,-9889.3,0.0001673,2]
[378678728,1754956248479,-419.44,0.0001673,2]
[378678729,1754956248488,-1317.42,0.0001673,2]
[378678730,1754956248497,-400.0,0.0001673,2]
[378678731,1754956248507,-551.51,0.0001673,2]
[378678732,1754956248517,-400.0,0.0001673,2]
[378678733,1754956248527,-556.94,0.0001673,2]
[378678734,1754956248536,-400.0,0.0001673,2]
[378678735,1754956248545,-2001.92,0.0001673,2]
[378678736,1754956248554,-1260.67,0.0001673,2]
[378678737,1754956248563,-400.0,0.0001673,2]
[378678738,1754956248573,-676.12,0.0001673,2]
[378678739,1754956248582,-544.05,0.0001673,2]
[378678740,1754956248591,-400.0,0.0001673,2]
[378678741,1754956248600,-400.0,0.0001673,2]
[378678742,1754956248609,-400.0,0.0001673,2]
[378678743,1754956248619,-400.0,0.0001673,2]
[378678744,1754956248628,-400.0,0.0001673,2]
[378678745,1754956248638,-400.0,0.0001673,2]
[378678746,1754956248648,-770.27,0.0001673,2]
[378678747,1754956248657,-527.17,0.0001673,2]
[378678748,1754956248667,-425.25,0.0001673,2]
[378678749,1754956248677,-423.79,0.0001673,2]
[378678750,1754956248691,-400.0,0.0001673,2]
[378678751,1754956248700,-400.0,0.0001673,2]
[378678752,1754956248709,-400.0,0.0001673,2]
[378678753,1754956248719,-474.89,0.0001673,2]
[378678754,1754956248729,-535.38,0.0001673,2]
[378678755,1754956248738,-400.0,0.0001673,2]
[378678756,1754956248748,-870.74,0.0001673,2]
[378678757,1754956248759,-762.46,0.0001673,2]
[378678758,1754956248769,-1123.19,0.0001673,2]
[378678759,1754956248778,-594.22,0.0001673,2]
[378678760,1754956248787,-400.0,0.0001673,2]
[378678761,1754956248797,-400.0,0.0001673,2]
[378678762,1754956248806,-410.08,0.0001673,2]
[378678763,1754956248816,-400.0,0.0001673,2]
[378678764,1754956248825,-1414.95,0.0001673,2]
[378678765,1754956248835,-400.0,0.0001673,2]
[378678766,1754956248845,-400.0,0.0001673,2]
[378678767,1754956248854,-400.0,0.0001673,2]
[378678768,1754956248863,-459.2,0.0001673,2]
[378678769,1754956248873,-827.03,0.0001673,2]
[378678770,1754956248882,-400.0,0.0001673,2]
[378678771,1754956248891,-1165.46,0.0001673,2]
[378678772,1754956248900,-400.0,0.0001673,2]
[378678773,1754956248910,-400.0,0.0001673,2]
[378678774,1754956248919,-470.66,0.0001673,2]
[378678775,1754956248929,-400.0,0.0001673,2]
[378678776,1754956248938,-1120.56,0.0001673,2]
[378678777,1754956248948,-400.0,0.0001673,2]
[378678778,1754956248958,-400.0,0.0001673,2]
[378678779,1754956248971,-400.0,0.0001673,2]
[378678780,1754956248980,-400.0,0.0001673,2]
[378678781,1754956248989,-6234.86,0.0001673,2]
[378678782,1754956248999,-400.0,0.0001673,2]
[378678783,1754956249008,-400.0,0.0001673,2]
[378678784,1754956249017,-1539.44,0.0001673,2]
[378678785,1754956249026,-400.0,0.0001673,2]
[378678786,1754956249036,-512.895501,0.00016731,2]
[378678787,1754956249045,-512.895501,0.00016731,2]
[378678788,1754956249055,-425.01,0.00016731,2]
[378678789,1754956249064,-619.28,0.00016731,2]
[378678790,1754956249073,-784.54,0.00016731,2]
[378678791,1754956249082,-400.0,0.00016731,2]
[378678792,1754956249091,-571.88,0.00016731,2]
[378678793,1754956249101,-573.13,0.00016731,2]
[378678794,1754956249110,-400.0,0.00016731,2]
[378678795,1754956249120,-1164.33,0.00016731,2]
[378678796,1754956249129,-1531.61,0.00016731,2]
[378678797,1754956249138,-704.09,0.00016731,2]
[378678798,1754956249148,-400.0,0.00016731,2]
[378678799,1754956249157,-1024.62,0.00016731,2]
[378678800,1754956249166,-6267.71,0.00016731,2]
[378678801,1754956249176,-643.34,0.00016731,2]
[378678802,1754956249185,-818.34,0.00016731,2]
[378678803,1754956249195,-1562.48,0.00016731,2]
[378678804,1754956249204,-869.54,0.00016731,2]
[378678805,1754956249213,-764.15,0.00016731,2]
[378678806,1754956249224,-1434.28,0.00016731,2]
[378678807,1754956249234,-400.0,0.00016731,2]
[378678808,1754956249243,-496.88,0.00016731,2]
[378678809,1754956249253,-400.0,0.00016731,2]
[378678810,1754956249263,-756.23,0.00016731,2]
[378678811,1754956249272,-1172.86,0.00016731,2]
[378678812,1754956249282,-400.0,0.00016731,2]
[378678813,1754956249292,-789.48,0.00016731,2]
[378678814,1754956249301,-532.9,0.00016731,2]
[378678815,1754956249310,-926.19,0.00016731,2]
[378678816,1754956249319,-554.88,0.00016731,2]
[378678817,1754956249328,-410.31,0.00016731,2]
[378678818,1754956249337,-2919.75940895,0.00016768,2]
[378678819,1754956249346,-150.0,0.00016779,2]
[378678820,1754956249355,-223.05,0.0001678,2]
[378678821,1754956249365,-162.79896212,0.0001678,2]
[378678822,1754956249374,-462.81945389,0.000168,2]
[378678823,1754956249383,-150.0,0.00016814,2]
[378678824,1754956249393,-3027.79050709,0.00016823,2]
[378678825,1754956249402,-8354.32389157,0.00016829,2]
[378678826,1754956249411,-151.0,0.00016832,2]
[378678827,1754956249420,-151.0,0.00016832,2]
[378678828,1754956249429,-151.0,0.00016832,2]
[378678829,1754956249439,-151.0,0.00016832,2]
[378678830,1754956249451,-151.0,0.00016832,2]
[378678831,1754956249460,-151.0,0.00016832,2]
[378678832,1754956249469,-151.0,0.00016832,2]
[378678833,1754956249479,-151.0,0.00016832,2]
[378678834,1754956249487,-151.0,0.00016832,2]
[378678835,1754956249496,-2074.0,0.00016845,2]
[378678836,1754956249506,-500.0,0.0001685,2]
[378678837,1754956249515,-500.0,0.0001685,2]
[378678838,1754956249524,-200.0,0.0001685,2]
[378678839,1754956249533,-168.0,0.00016852,2]
[378678840,1754956249543,-462.81945389,0.00016877,2]
[378678841,1754956249551,-150.0,0.00016878,2]
[378678842,1754956249560,-3139.81875585,0.00016878,2]
[378678843,1754956249570,-600.0,0.00016885,2]
[378678844,1754956249579,-151.0,0.00016885,2]
[378678845,1754956249588,-151.0,0.00016888,2]
[378678846,1754956249597,-151.0,0.00016892,2]
[378678847,1754956249606,-151.0,0.000169,2]
[378678848,1754956249615,-151.0,0.00016901,2]
[378678849,1754956249624,-8838.48860582,0.00016905,2]
[378678850,1754956249633,-175.94,0.00016921,2]
[378678851,1754956249642,-3255.99204981,0.00016933,2]
[378678852,1754956249652,-150.0,0.00016942,2]
[378678853,1754956249661,-462.81945389,0.00016954,2]
[378678854,1754956249670,-150.0,0.00016954,2]
[378678855,1754956249685,-150.0,0.00016966,2]
[378678856,1754956249694,-1000.0,0.0001697,2]
[378678857,1754956249703,-1000.0,0.0001697,2]
[378678858,1754956249712,-1000.0,0.0001697,2]
[378678859,1754956249721,-512.895501,0.0001698,2]
[378678860,1754956249732,-512.895501,0.0001698,2]
[378678861,1754956249741,-901.89402747,0.00016984,2]
[378678862,1754956249751,-150.0,0.00016986,2]
[378678863,1754956249865,-500.0,0.00016986,2]
[378678864,1754956249882,-200.0,0.00016986,2]
[378678865,1754956249892,-590.6421656,0.00016986,2]
[378678866,1754956249901,-500.0,0.00016986,2]
[378678867,1754956249911,-512.895501,0.00016986,2]
[378678868,1754956249920,-512.895501,0.00016986,2]
[378678869,1754956249930,-3376.46375566,0.00016988,2]
[378678870,1754956249939,-400.0,0.00016993,2]
[378678871,1754956249949,-400.0,0.00016993,2]
[378678872,1754956249960,-476.86,0.00016993,2]
[378678873,1754956249970,-400.0,0.00016993,2]
[378678874,1754956249979,-679.66,0.00016993,2]
[378678875,1754956249989,-400.0,0.00016993,2]
[378678876,1754956249999,-451.66,0.00016993,2]
[378678877,1754956250009,-386.15573385,0.00016994,2]
[378678878,1754956250018,-400.0,0.00016994,2]
[378678879,1754956250027,-400.0,0.00016994,2]
[378678880,1754956250036,-400.0,0.00016994,2]
[378678881,1754956250047,-153.61271854,0.00016994,2]
[378678882,1754956250056,-400.0,0.00016994,2]
[378678883,1754956250065,-400.0,0.00016994,2]
[378678884,1754956250074,-400.0,0.00016994,2]
[378678885,1754956250083,-400.0,0.00016994,2]
[378678886,1754956250092,-400.0,0.00016994,2]
[378678887,1754956250101,-400.0,0.00016994,2]
[378678888,1754956250110,-400.0,0.00016994,2]
[378678889,1754956250120,-400.0,0.00016994,2]
[378678890,1754956250129,-400.0,0.00016994,2]
[378678891,1754956250139,-400.0,0.00016994,2]
[378678892,1754956250148,-400.0,0.00016994,2]
[378678893,1754956250157,-400.0,0.00016994,2]
[378678894,1754956250166,-400.0,0.00016994,2]
[378678895,1754956250176,-400.0,0.00016994,2]
[378678896,1754956250186,-400.0,0.00016994,2]
[378678897,1754956250195,-400.0,0.00016994,2]
[378678898,1754956250204,-183.59,0.00016994,2]
[378678899,1754956250213,-400.0,0.00016994,2]
[378678900,1754956250223,-400.0,0.00016994,2]
[378678901,1754956250232,-209.75,0.00016994,2]
[378678902,1754956250241,-400.0,0.00016994,2]
[378678903,1754956250250,-400.82,0.00016994,2]
[378678904,1754956250260,-308.03114871,0.00016994,2]
[378678905,1754956250269,-400.0,0.00016994,2]
[378678906,1754956250279,-400.0,0.00016994,2]
[378678907,1754956250288,-400.0,0.00016994,2]
[378678908,1754956250298,-400.0,0.00016994,2]
[378678909,1754956250307,-400.0,0.00016994,2]
[378678910,1754956250317,-400.0,0.00016994,2]